bitfinex-derivatives/quotes_BTCF0:USTF0_20250922
["timestamp","ask_amount","ask_price","bid_price","bid_amount"]
[1758522912598,1.02283,112760.0,112750.0,0.65943646]
[1758522912897,1.0240462,112760.0,112750.0,0.65943646]
[1758522913999,0.0072162,112760.0,112750.0,0.10258]
[1758522914295,0.0072162,112760.0,112750.0,1.09806236]
[1758522915491,0.0072162,112760.0,112750.0,0.99806236]
[1758522916097,0.0072162,112760.0,112750.0,1.55491882]
[1758522916299,0.0072162,112760.0,112750.0,0.99806236]
[1758522916598,0.0072162,112760.0,112750.0,1.65491882]
[1758522916799,0.0072162,112760.0,112750.0,1.09806236]
[1758522917103,0.0072162,112760.0,112750.0,1.65491882]
[1758522918000,0.0072162,112760.0,112750.0,1.09806236]
[1758522918902,0.0072162,112760.0,112750.0,1.65491882]
[1758522919295,0.0072162,112760.0,112750.0,1.65483882]
[1758522919804,0.05902,112790.0,112780.0,0.12694]
[1758522920104,0.0012162,112790.0,112780.0,0.77239886]
[1758522921003,0.0012162,112790.0,112780.0,0.68379646]
[1758522921204,0.0082162,112790.0,112780.0,0.12794]
[1758522921404,0.0202162,112790.0,112780.0,0.68479646]
[1758522921699,0.0202162,112790.0,112780.0,0.77339886]
[1758522921901,0.0202162,112790.0,112780.0,0.87339886]
[1758522922293,0.0202162,112790.0,112780.0,0.3165424]
[1758522922499,0.0202162,112790.0,112780.0,0.87339886]
[1758522922705,0.0202162,112790.0,112780.0,0.81444144]
[1758522923796,0.0202162,112790.0,112780.0,1.06444144]
[1758522923997,0.0203162,112790.0,112780.0,1.06444144]
[1758522924798,1.91683,112850.0,112820.0,0.0885693]
[1758522925005,0.20177,112840.0,112830.0,0.57956904]
[1758522925203,0.20177,112840.0,112830.0,0.08167]
[1758522925603,0.27105872,112840.0,112830.0,0.08167]
[1758522925806,0.27105872,112840.0,112810.0,0.135808]
[1758522926006,0.12499,112840.0,112830.0,0.57956904]
[1758522926206,0.14489,112840.0,112830.0,0.66913214]
[1758522926406,0.17379892,112840.0,112830.0,0.66913214]
[1758522926606,0.15089,112840.0,112830.0,0.66913214]
[1758522926806,0.15089,112840.0,112830.0,0.58056904]
[1758522927206,0.15089,112840.0,112830.0,0.66913214]
[1758522927407,0.14789,112840.0,112830.0,0.66913214]
[1758522927608,0.023,112840.0,112830.0,0.68970214]
[1758522927810,0.023,112840.0,112830.0,0.78970214]
[1758522928004,0.006,112840.0,112830.0,1.03870214]
[1758522929007,0.00808039,112840.0,112830.0,1.03870214]
[1758522931914,0.00808039,112840.0,112830.0,1.97602214]
[1758522932118,0.00508039,112840.0,112830.0,1.98002214]
[1758522933613,0.00208039,112840.0,112830.0,1.98102214]
[1758522934116,0.00204039,112840.0,112830.0,1.98102214]
[1758522934418,0.00204039,112840.0,112830.0,1.04370214]
[1758522934715,0.00204039,112840.0,112830.0,1.98046214]
[1758522935521,0.00204039,112840.0,112830.0,1.98030214]
[1758522935709,0.00204039,112840.0,112830.0,1.04370214]
[1758522936023,0.00204039,112840.0,112830.0,1.98022214]
[1758522936710,0.00204039,112840.0,112830.0,1.04370214]
[1758522936911,0.00204039,112840.0,112830.0,1.63002214]
[1758522937613,0.00204039,112840.0,112830.0,1.63042214]
[1758522937813,0.00204039,112840.0,112830.0,1.63034214]
[1758522938013,0.00204039,112840.0,112830.0,1.73034214]
[1758522938813,0.00204039,112840.0,112830.0,0.79410214]
[1758522939018,0.00204039,112840.0,112830.0,1.72998214]
[1758522939414,0.00204039,112840.0,112830.0,0.79410214]
[1758522939713,0.0001,112850.0,112840.0,0.20760892]
[1758522939918,0.00076,112860.0,112850.0,0.2174474]
[1758522939919,0.00046,112860.0,112850.0,0.2174474]
[1758522940111,0.00036,112860.0,112850.0,0.71534644]
[1758522941419,0.00336,112860.0,112850.0,0.71534644]
[1758522941712,0.00636,112860.0,112850.0,0.71534644]
[1758522942016,0.00636,112860.0,112850.0,0.81534644]
[1758522943117,0.00676,112860.0,112850.0,0.81534644]
[1758522943615,0.00676,112860.0,112850.0,1.75038644]
[1758522944011,0.00636,112860.0,112850.0,1.2524874]
[1758522944210,0.00676,112860.0,112850.0,1.75038644]
[1758522944411,0.00676,112860.0,112850.0,1.75014644]
[1758522944616,0.00676,112860.0,112850.0,0.81534644]
[1758522945011,0.00676,112860.0,112850.0,1.75010644]
[1758522945920,0.00636,112860.0,112850.0,1.75010644]
[1758522946121,0.00676,112860.0,112850.0,1.75010644]
[1758522946716,0.00676,112860.0,112850.0,1.7710824]
[1758522946717,0.0004,112860.0,112850.0,1.7710824]
[1758522946923,0.0002,112870.0,112860.0,0.1947895]
[1758522947122,0.02088,112880.0,112870.0,0.1091017]
[1758522947322,0.02068,112880.0,112870.0,1.1250917]
[1758522947619,0.02028,112880.0,112870.0,1.62299074]
[1758522948022,0.02149599,112880.0,112870.0,1.62283074]
[1758522948322,0.02149599,112880.0,112870.0,1.72283074]
[1758522948523,0.02149599,112880.0,112870.0,1.72683074]
[1758522949020,0.02141599,112880.0,112870.0,1.72671074]
[1758522949214,0.02141599,112880.0,112870.0,0.79267074]
[1758522950023,0.09682599,112880.0,112870.0,0.79267074]
[1758522950722,0.14513599,112880.0,112870.0,0.67210074]
[1758522950922,0.14513599,112880.0,112870.0,0.67250074]
[1758522952124,0.09682599,112880.0,112870.0,0.69307074]
[1758522952723,0.14513599,112880.0,112870.0,0.69307074]
[1758522953315,0.39513599,112880.0,112870.0,0.67250074]
[1758522953519,0.39513599,112880.0,112870.0,0.67210074]
[1758522953721,0.39513599,112880.0,112870.0,0.58396904]
[1758522954026,0.39513599,112880.0,112870.0,0.67250074]
[1758522954226,0.27141599,112880.0,112870.0,0.68914074]
[1758522954626,0.27263198,112880.0,112870.0,0.68914074]
[1758522954926,0.27223198,112880.0,112870.0,0.70973329]
[1758522955419,0.27223198,112880.0,112870.0,0.80973329]
[1758522955624,0.02263198,112880.0,112870.0,0.80973329]
[1758522956026,0.02223198,112880.0,112870.0,0.80973329]
[1758522956324,0.02263198,112880.0,112870.0,0.70973329]
[1758522956726,0.09786198,112880.0,112870.0,0.21183425]
[1758522956916,0.09786198,112880.0,112870.0,0.70973329]
[1758522957116,0.14544198,112880.0,112870.0,0.60456159]
[1758522957321,0.39544198,112880.0,112870.0,0.60456159]
[1758522957526,0.39544198,112880.0,112870.0,0.60416159]
[1758522957727,0.39544198,112880.0,112870.0,0.69309329]
[1758522957922,0.34786198,112880.0,112870.0,0.69309329]
[1758522958227,0.02263198,112880.0,112870.0,0.70973329]
[1758522958829,0.02223198,112880.0,112870.0,0.70973329]
[1758522959124,0.02263198,112880.0,112870.0,0.80973329]
[1758522961827,0.02263198,112880.0,112870.0,1.74133329]
[1758522962021,0.02223198,112880.0,112870.0,1.74133329]
[1758522962326,0.0002,112890.0,112870.0,1.99133329]
[1758522962531,0.0002,112890.0,112880.0,0.70468294]
[1758522962830,0.0004,112890.0,112880.0,0.70468294]
[1758522963026,0.0002,112900.0,112890.0,0.212406]
[1758522963222,0.12454,112910.0,112900.0,0.1661282]
[1758522963423,0.12434,112910.0,112900.0,0.57551904]
[1758522963734,0.12434,112910.0,112900.0,0.66402724]
[1758522963933,0.12426,112910.0,112900.0,0.66402724]
[1758522964130,0.12547481,112910.0,112900.0,0.66402724]
[1758522964333,0.12947481,112910.0,112900.0,0.66402724]
[1758522964631,0.20162321,112910.0,112900.0,0.66402724]
[1758522964833,0.20162321,112910.0,112900.0,0.57551904]
[1758522965228,0.20162321,112910.0,112900.0,0.07762]
[1758522965427,0.33124481,112910.0,112900.0,0.78963724]
[1758522966023,0.08044481,112910.0,112900.0,0.78963724]
[1758522966223,0.08084481,112910.0,112900.0,0.78963724]
[1758522966430,0.08044481,112910.0,112900.0,0.78963724]
[1758522966635,0.08584481,112910.0,112900.0,0.78963724]
[1758522967335,0.08584481,112910.0,112900.0,0.1917382]
[1758522967537,0.08584481,112910.0,112900.0,0.68963724]
[1758522967731,0.13342481,112910.0,112900.0,0.68963724]
[1758522967923,0.13342481,112910.0,112900.0,0.1661282]
[1758522968629,0.13342481,112910.0,112900.0,0.57551904]
[1758522968834,0.38342481,112910.0,112890.0,0.0001]
[1758522969038,0.12281,112900.0,112890.0,0.167036]
[1758522969233,0.12402481,112900.0,112890.0,0.66483504]
[1758522969435,0.12402481,112900.0,112890.0,0.76403504]
[1758522969635,0.12402481,112900.0,112890.0,0.76443504]
[1758522969941,0.07644481,112900.0,112890.0,0.81070504]
[1758522970129,0.07784481,112900.0,112890.0,0.81070504]
[1758522970532,0.00261481,112900.0,112890.0,0.81070504]
[1758522970733,0.00221481,112900.0,112890.0,1.06070504]
[1758522970931,0.00261481,112900.0,112890.0,1.06070504]
[1758522971134,0.00221481,112900.0,112890.0,1.06070504]
[1758522971338,0.00382962,112900.0,112890.0,1.06070504]
[1758522972138,0.00682962,112900.0,112890.0,1.06070504]
[1758522972644,0.00682962,112900.0,112890.0,1.99054504]
[1758522972846,0.00642962,112900.0,112890.0,2.01128767]
[1758522973147,0.00682962,112900.0,112890.0,2.01128767]
[1758522973347,0.00682962,112900.0,112890.0,1.51338863]
[1758522973549,0.00682962,112900.0,112890.0,2.01128767]
[1758522973748,0.00682962,112900.0,112890.0,1.08144767]
[1758522973948,0.00382962,112900.0,112890.0,2.01208767]
[1758522974249,0.00382962,112900.0,112890.0,2.02108767]
[1758522974250,0.00282962,112900.0,112890.0,2.02108767]
[1758522974450,0.00282962,112900.0,112890.0,2.02104767]
[1758522974638,0.00282962,112900.0,112890.0,1.09144767]
[1758522975651,0.08019962,112900.0,112890.0,0.74144767]
[1758522976040,0.12719962,112900.0,112890.0,0.10836263]
[1758522976246,0.12719962,112900.0,112890.0,0.19727873]
[1758522976544,0.12719962,112900.0,112890.0,0.10836263]
[1758522976744,0.12719962,112900.0,112890.0,0.10876263]
[1758522977350,0.37719962,112900.0,112890.0,0.10836263]
[1758522977545,0.37719962,112900.0,112890.0,0.03114263]
[1758522977744,0.37719962,112900.0,112890.0,0.03074263]
[1758522977945,0.37719962,112900.0,112890.0,0.02714263]
[1758522978251,0.37719962,112900.0,112890.0,0.02674263]
[1758522978452,0.37719962,112900.0,112890.0,0.02614263]
[1758522978750,0.37719962,112900.0,112890.0,0.02574263]
[1758522978956,0.37719962,112900.0,112890.0,0.02614263]
[1758522979154,0.37721583,112900.0,112890.0,0.02614263]
[1758522979457,0.37821583,112900.0,112890.0,0.02614263]
[1758522979955,0.37821583,112900.0,112890.0,0.02574263]
[1758522980156,0.37821583,112900.0,112890.0,0.02114263]
[1758522980356,0.37821583,112900.0,112890.0,0.02214263]
[1758522980656,0.12437,112890.0,112880.0,0.0001]
[1758522980855,0.047,112880.0,112870.0,0.02069255]
[1758522981056,0.12681583,112880.0,112870.0,0.09400255]
[1758522982552,0.12681583,112880.0,112870.0,0.65064333]
[1758522982859,0.00244583,112880.0,112870.0,0.86478513]
[1758522983251,0.00284583,112880.0,112870.0,0.76878513]
[1758522983452,0.00284583,112880.0,112870.0,0.76978513]
[1758522984060,0.00284583,112880.0,112870.0,1.01878513]
[1758522984352,0.00244583,112880.0,112870.0,1.11878513]
[1758522984760,0.00284583,112880.0,112870.0,1.11878513]
[1758522985160,0.00244583,112880.0,112870.0,1.11878513]
[1758522985362,0.00284583,112880.0,112870.0,1.11878513]
[1758522986253,0.00284583,112880.0,112870.0,0.86878513]
[1758522986560,0.07518583,112880.0,112870.0,0.86878513]
[1758522986861,0.00284583,112880.0,112870.0,0.86878513]
[1758522987062,0.07518583,112880.0,112870.0,0.86878513]
[1758522988764,0.07518583,112880.0,112870.0,0.22401255]
[1758522988963,0.12014583,112880.0,112870.0,0.74277513]
[1758522989156,0.00284583,112880.0,112870.0,0.76719513]
[1758522989459,0.00244583,112880.0,112870.0,0.76719513]
[1758522989665,0.00284583,112880.0,112870.0,1.01719513]
[1758522989860,0.00244583,112880.0,112870.0,1.01719513]
[1758522990057,0.00284583,112880.0,112870.0,0.86719513]
[1758522990263,0.07518583,112880.0,112870.0,0.86719513]
[1758522990566,0.07518583,112880.0,112870.0,0.76719513]
[1758522991568,0.12014583,112880.0,112870.0,0.65464333]
[1758522991768,0.37014583,112880.0,112870.0,0.09840255]
[1758522992063,0.37014583,112880.0,112870.0,0.02559255]
[1758522992367,0.37014583,112880.0,112870.0,0.02599255]
[1758522992661,0.37014583,112880.0,112870.0,0.02099255]
[1758522992858,0.37014583,112880.0,112870.0,0.18753435]
[1758522992859,0.12174583,112880.0,112870.0,0.18753435]
[1758522993056,0.12214583,112880.0,112870.0,0.18753435]
[1758522993263,0.07518583,112880.0,112870.0,0.76441513]
[1758522993466,0.01044583,112880.0,112870.0,0.76441513]
[1758522993657,0.01084583,112880.0,112870.0,0.86441513]
[1758522993865,0.01044583,112880.0,112870.0,0.86441513]
[1758522994063,0.01084583,112880.0,112870.0,0.86441513]
[1758522994360,0.01044583,112880.0,112870.0,0.86441513]
[1758522994561,0.01084583,112880.0,112870.0,0.86441513]
[1758522995066,0.00284583,112880.0,112870.0,0.86841513]
[1758522995862,0.00244583,112880.0,112870.0,0.86941513]
[1758522996063,0.00284583,112880.0,112870.0,0.86941513]
[1758522996463,0.00244583,112880.0,112870.0,0.86941513]
[1758522996662,0.0002,112890.0,112880.0,0.210644]
[1758522996963,0.0002,112900.0,112890.0,0.2071661]
[1758522997165,0.001,112910.0,112900.0,0.1905383]
[1758522997363,0.0002,112920.0,112910.0,0.0885004]
[1758522997564,0.04496,112930.0,112910.0,0.74339118]
[1758522997565,0.09069375,112930.0,112910.0,0.74339118]
[1758522997870,0.16303375,112930.0,112920.0,0.63425078]
[1758522998071,0.41283375,112930.0,112920.0,0.63425078]
[1758522998369,0.16203375,112930.0,112920.0,0.63425078]
[1758522998570,0.16243375,112930.0,112920.0,0.63425078]
[1758522998972,0.16443375,112930.0,112920.0,0.07801]
[1758522999673,0.16943375,112930.0,112920.0,0.07801]
[1758522999870,0.1267,112930.0,112920.0,0.07801]
[1758523000269,0.1267,112930.0,112920.0,0.63425078]
[1758523000974,0.08134,112930.0,112920.0,0.76685338]
[1758523001174,0.08174,112930.0,112920.0,0.2106126]
[1758523001474,0.009,112930.0,112920.0,0.76685338]
[1758523001873,0.009,112930.0,112920.0,1.01685338]
[1758523002074,0.0094,112930.0,112920.0,1.01685338]
[1758523002268,0.009,112930.0,112920.0,1.11685338]
[1758523002469,0.0094,112930.0,112920.0,1.11685338]
[1758523002669,0.009,112930.0,112920.0,1.11685338]
[1758523002871,0.0094,112930.0,112920.0,1.11685338]
[1758523003070,0.0002,112940.0,112930.0,0.2071348]
[1758523003275,0.001,112950.0,112940.0,0.1905069]
[1758523003464,0.0002,112960.0,112950.0,0.1871191]
[1758523003665,0.05228274,112970.0,112950.0,0.74335988]
[1758523003871,0.12382274,112970.0,112960.0,0.63425078]
[1758523004068,0.12402274,112970.0,112960.0,0.63425078]
[1758523004474,0.12362274,112970.0,112960.0,0.63425078]
[1758523004676,0.12402274,112970.0,112960.0,0.72271208]
[1758523004876,0.12362274,112970.0,112960.0,0.72271208]
[1758523005072,0.12402274,112970.0,112960.0,0.72271208]
[1758523005272,0.12702274,112970.0,112960.0,0.63425078]
[1758523005469,0.12662274,112970.0,112960.0,0.07801]
[1758523005769,0.04496,112960.0,112950.0,0.0001]
[1758523006077,0.1173,112960.0,112950.0,0.07801]
[1758523006380,0.1173,112960.0,112950.0,0.74335998]
[1758523006575,0.1177,112960.0,112950.0,0.74335998]
[1758523006976,0.1173,112960.0,112950.0,0.74335998]
[1758523007176,0.1177,112960.0,112950.0,0.65489078]
[1758523007572,0.1197,112960.0,112950.0,0.63425078]
[1758523007777,0.1197,112960.0,112950.0,0.72272008]
[1758523007977,0.1197,112960.0,112950.0,0.1664793]
[1758523008180,0.1197,112960.0,112950.0,0.72272008]
[1758523008781,0.0084,112960.0,112950.0,0.74336008]
[1758523009477,0.08074,112960.0,112950.0,0.65489078]
[1758523009682,0.08074,112960.0,112950.0,0.74336008]
[1758523010384,0.08074,112960.0,112950.0,0.1871193]
[1758523010585,0.08074,112960.0,112950.0,0.74336008]
[1758523011384,0.1257,112960.0,112950.0,0.72272008]
[1758523011586,0.0084,112960.0,112950.0,0.74336008]
[1758523013284,0.0084,112960.0,112950.0,0.84336008]
[1758523013784,0.0084,112960.0,112950.0,1.39960086]
[1758523014087,0.008,112960.0,112950.0,1.09336008]
[1758523014282,0.0084,112960.0,112950.0,0.5371193]
[1758523014482,0.0084,112960.0,112950.0,1.09336008]
[1758523018286,0.0084,112960.0,112950.0,1.64960086]
[1758523018485,0.008,112960.0,112950.0,1.64960086]
[1758523018687,0.0084,112960.0,112950.0,1.64960086]
[1758523019880,0.0084,112960.0,112950.0,2.57168086]
[1758523020887,0.0084,112960.0,112950.0,1.64960086]
[1758523021080,0.0084,112960.0,112950.0,1.91528008]
[1758523021286,0.08452,112960.0,112950.0,0.74336008]
[1758523021485,0.08452,112960.0,112950.0,0.65489078]
[1758523021783,0.38003,112960.0,112950.0,0.07801]
[1758523021983,0.38003,112960.0,112940.0,0.0001]
[1758523022183,0.10317229,112950.0,112940.0,0.07517]
[1758523022382,0.10317229,112950.0,112940.0,0.07427]
[1758523022688,0.10317229,112950.0,112940.0,0.07467]
[1758523023190,0.35317229,112950.0,112940.0,0.07467]
[1758523023394,0.35517229,112950.0,112940.0,0.07427]
[1758523023688,0.35517229,112950.0,112940.0,0.07467]
[1758523026287,0.07812,112950.0,112940.0,0.75027788]
[1758523026683,0.07852,112950.0,112940.0,0.75027788]
[1758523026890,0.07812,112950.0,112940.0,0.75027788]
[1758523027079,0.07852,112950.0,112940.0,0.75027788]
[1758523027285,0.0024,112950.0,112940.0,0.75027788]
[1758523027491,0.0024,112950.0,112940.0,0.85027788]
[1758523027686,0.0024,112950.0,112940.0,1.10027788]
[1758523027885,0.002,112950.0,112940.0,1.10027788]
[1758523028086,0.0024,112950.0,112940.0,1.10027788]
[1758523028289,0.0024,112950.0,112940.0,0.5440371]
[1758523028490,0.0024,112950.0,112940.0,1.10027788]
[1758523031891,0.12484,112950.0,112940.0,0.07427]
[1758523032089,0.93108078,112950.0,112940.0,0.0004]
[1758523032493,0.04431,112940.0,112930.0,0.09220549]
[1758523032790,0.12244,112940.0,112930.0,0.09210549]
[1758523033688,0.12244,112940.0,112930.0,0.18159039]
[1758523033889,0.12244,112940.0,112930.0,0.73783117]
[1758523034291,0.12244,112940.0,112930.0,0.64934627]
[1758523034491,0.12244,112940.0,112930.0,0.09310549]
[1758523034691,0.12284,112940.0,112930.0,0.09310549]
[1758523035595,0.12284,112940.0,112930.0,0.09410549]
[1758523035798,0.12284,112940.0,112930.0,0.09450549]
[1758523036595,0.12284,112940.0,112930.0,0.18299039]
[1758523036798,0.07853,112940.0,112930.0,0.78411117]
[1758523036993,0.0004,112940.0,112930.0,0.78411117]
[1758523037595,0.12344,112950.0,112940.0,0.1601271]
[1758523037794,0.12324,112950.0,112940.0,0.62789078]
[1758523037993,0.12244,112950.0,112940.0,0.07165]
[1758523038188,0.12284,112950.0,112940.0,0.07165]
[1758523039098,0.12244,112940.0,112930.0,0.07315]
[1758523039400,0.12244,112940.0,112930.0,0.07265]
[1758523039590,0.12244,112940.0,112930.0,0.07205]
[1758523040294,0.12244,112940.0,112930.0,0.0014]
[1758523040501,0.92868078,112940.0,112930.0,0.002]
[1758523040703,0.92868078,112940.0,112930.0,0.0024]
[1758523040997,0.92868078,112940.0,112930.0,0.002]
[1758523041295,0.92868078,112940.0,112930.0,0.0024]
[1758523041695,0.37244,112940.0,112930.0,0.0024]
[1758523041887,0.89296,112940.0,112930.0,0.002]
[1758523042092,0.89296,112940.0,112930.0,0.0024]
[1758523042993,1.44920078,112940.0,112930.0,0.0024]
[1758523043388,1.44920078,112940.0,112930.0,0.002]
[1758523043597,1.44920078,112940.0,112930.0,0.0024]
[1758523044600,1.38990854,112940.0,112930.0,0.0024]
[1758523045390,0.86938854,112940.0,112930.0,0.0024]
[1758523045597,1.78762854,112940.0,112930.0,0.0024]
[1758523045902,1.29068,112940.0,112930.0,0.0024]
[1758523046201,1.78762854,112940.0,112930.0,0.0024]
[1758523047000,0.86938854,112940.0,112930.0,0.0024]
[1758523047200,0.37244,112940.0,112930.0,0.0024]
[1758523047494,0.12244,112940.0,112930.0,0.0734]
[1758523047697,1.0404,112940.0,112930.0,0.0734]
[1758523047900,1.0404,112940.0,112930.0,0.0024]
[1758523048202,1.04076,112940.0,112930.0,0.0024]
[1758523048501,0.12284,112940.0,112930.0,0.0024]
[1758523048702,1.04068,112940.0,112930.0,0.0024]
[1758523048897,1.04064,112940.0,112930.0,0.0024]
[1758523049201,1.04056,112940.0,112930.0,0.0734]
[1758523049401,1.04056,112940.0,112930.0,0.0024]
[1758523049704,1.04056,112940.0,112930.0,0.0734]
[1758523050905,1.04056,112940.0,112930.0,0.0024]
[1758523051495,1.78750854,112940.0,112930.0,0.0024]
[1758523051897,1.78750854,112940.0,112930.0,0.002]
[1758523052502,1.78750854,112940.0,112930.0,0.0024]
[1758523053704,1.03992,112940.0,112930.0,0.0734]
[1758523054003,1.03952,112940.0,112930.0,0.0734]
[1758523054200,1.03992,112940.0,112930.0,0.0734]
[1758523054501,1.03992,112940.0,112930.0,0.002]
[1758523054702,1.03992,112940.0,112930.0,0.0024]
[1758523054898,1.03992,112940.0,112930.0,0.002]
[1758523055098,0.12284,112940.0,112930.0,0.0024]
[1758523055400,0.87888,112940.0,112930.0,0.002]
[1758523055601,0.87888,112940.0,112930.0,0.0024]
[1758523059106,0.12284,112940.0,112930.0,0.0024]
[1758523059306,0.87876,112940.0,112930.0,0.0024]
[1758523059501,0.12284,112940.0,112930.0,0.0734]
[1758523059699,1.03924,112940.0,112930.0,0.0734]
[1758523060612,1.03924,112940.0,112930.0,0.0024]
[1758523062611,0.12284,112940.0,112930.0,0.0024]
[1758523062911,0.87864,112940.0,112930.0,0.0024]
[1758523063208,0.87864,112940.0,112930.0,0.0734]
[1758523063611,0.12284,112940.0,112930.0,0.0734]
[1758523063810,0.12284,112940.0,112930.0,0.95371344]
[1758523063811,0.07853,112940.0,112930.0,0.95371344]
[1758523064013,0.51783,112950.0,112930.0,0.95371344]
[1758523064310,0.51783,112950.0,112930.0,0.95381344]
[1758523064605,0.0004,112940.0,112930.0,0.95381344]
[1758523064806,0.0004,112940.0,112930.0,0.95371344]
[1758523065013,0.0004,112940.0,112930.0,0.70371344]
[1758523065411,0.39776,112950.0,112940.0,0.1865571]
[1758523065612,0.39756,112950.0,112940.0,0.68350564]
[1758523066511,0.11456743,112960.0,112940.0,0.68350564]
[1758523066712,1.03008743,112960.0,112940.0,0.68360564]
[1758523067406,1.03008743,112960.0,112940.0,0.59512854]
[1758523067814,0.07753,112950.0,112940.0,0.186657]
[1758523068010,0.07853,112960.0,112950.0,0.1834892]
[1758523068315,0.99565,112960.0,112950.0,0.1834892]
[1758523068508,0.99485,112960.0,112950.0,0.1834892]
[1758523068707,0.99525,112960.0,112950.0,0.1834892]
[1758523069812,1.03828,112960.0,112950.0,0.09502]
[1758523070206,1.03628,112960.0,112950.0,0.071]
[1758523070407,1.04228,112960.0,112950.0,0.0714]
[1758523070706,1.04428,112960.0,112950.0,0.0714]
[1758523072306,0.12896,112960.0,112950.0,0.0714]
[1758523072914,1.04368,112960.0,112950.0,0.0714]
[1758523073208,0.12896,112960.0,112950.0,0.0714]
[1758523073416,1.04364,112960.0,112950.0,0.0714]
[1758523073916,0.12896,112960.0,112950.0,0.0714]
[1758523074115,1.04352,112960.0,112950.0,0.0714]
[1758523074415,1.04344,112960.0,112950.0,0.0714]
[1758523075015,0.12896,112960.0,112950.0,0.0714]
[1758523075203,1.04344,112960.0,112950.0,0.0714]
[1758523075716,1.04336,112960.0,112950.0,0.1598692]
[1758523077114,0.12896,112960.0,112950.0,0.1598692]
[1758523077311,1.04308,112960.0,112950.0,0.1598692]
[1758523077511,0.08593,112960.0,112950.0,0.93004774]
[1758523077702,1.00001,112960.0,112950.0,0.93004774]
[1758523077907,0.99961,112960.0,112950.0,0.93004774]
[1758523078210,1.00001,112960.0,112950.0,0.4330992]
[1758523080517,0.08593,112960.0,112950.0,0.4330992]
[1758523080705,0.99973,112960.0,112950.0,0.4330992]
[1758523081311,0.08593,112960.0,112950.0,0.4330992]
[1758523081518,0.99961,112960.0,112950.0,0.4330992]
[1758523081811,0.0084,112960.0,112950.0,0.95032546]
[1758523082010,0.008,112960.0,112950.0,0.95032546]
[1758523082217,0.0084,112960.0,112950.0,0.95032546]
[1758523082411,0.0084,112960.0,112950.0,0.45337692]
[1758523082612,0.0084,112960.0,112950.0,0.95032546]
[1758523082813,0.0084,112960.0,112950.0,1.05032546]
[1758523083206,0.0084,112960.0,112950.0,0.61185626]
[1758523083419,0.12789,112960.0,112950.0,0.67709546]
[1758523083718,0.12789,112960.0,112950.0,0.18014692]
[1758523084027,0.0827,112960.0,112950.0,0.70032546]
[1758523084212,0.0084,112960.0,112950.0,0.70036546]
[1758523084413,0.0084,112960.0,112950.0,0.94996546]
[1758523084624,0.0084,112960.0,112950.0,0.95036546]
[1758523084920,0.008,112960.0,112950.0,0.95036546]
[1758523085112,0.0084,112960.0,112950.0,0.95036546]
[1758523085313,0.0084,112960.0,112950.0,1.05036546]
[1758523085522,0.008,112960.0,112950.0,1.05036546]
[1758523085715,0.0084,112960.0,112950.0,1.05036546]
[1758523086513,0.008,112960.0,112950.0,1.05036546]
[1758523086715,0.0084,112960.0,112950.0,1.05036546]
[1758523088520,0.008,112960.0,112950.0,1.50088484]
[1758523088721,0.0084,112960.0,112950.0,1.50088484]
[1758523089923,0.0084,112960.0,112950.0,1.02715088]
[1758523090425,0.0064,112960.0,112950.0,1.02715088]
[1758523091420,0.0024,112960.0,112950.0,0.67715088]
[1758523091914,0.0767,112960.0,112950.0,0.58828168]
[1758523092117,0.0767,112960.0,112950.0,0.11494772]
[1758523092325,0.0767,112960.0,112950.0,0.58868168]
[1758523092728,0.0767,112960.0,112950.0,0.58828168]
[1758523092917,0.0767,112960.0,112950.0,0.58868168]
[1758523093120,0.0767,112960.0,112950.0,0.67715088]
[1758523093318,0.0024,112960.0,112950.0,0.67715088]
[1758523093716,0.3708,112960.0,112950.0,0.09171772]
[1758523094027,0.3708,112960.0,112950.0,0.09131772]
[1758523094415,0.3708,112960.0,112950.0,0.09171772]
[1758523097031,0.3708,112960.0,112950.0,0.09131772]
[1758523097240,0.3708,112960.0,112950.0,0.09171772]
[1758523098039,0.3708,112960.0,112950.0,0.18018682]
[1758523098240,0.3708,112960.0,112950.0,0.65392078]
[1758523098943,0.002,112960.0,112950.0,0.67794078]
[1758523099137,0.0024,112960.0,112950.0,0.77794078]
[1758523099536,0.002,112960.0,112950.0,0.77794078]
[1758523099744,0.0024,112960.0,112950.0,0.77794078]
[1758523100532,0.0024,112960.0,112950.0,0.80060175]
[1758523101237,0.0024,112960.0,112950.0,1.05060175]
[1758523101437,0.002,112960.0,112950.0,1.05060175]
[1758523101943,0.0024,112960.0,112950.0,1.05060175]
[1758523103039,0.002,112960.0,112950.0,1.05060175]
[1758523103244,0.0024,112960.0,112950.0,1.05060175]
[1758523103644,0.0024,112960.0,112950.0,1.11993609]
[1758523104544,0.002,112960.0,112950.0,1.11993609]
[1758523104746,0.0024,112960.0,112950.0,1.11993609]
[1758523105741,0.0024,112960.0,112950.0,0.62354116]
[1758523105945,0.0024,112960.0,112950.0,2.03033609]
[1758523106547,0.0024,112960.0,112950.0,2.64428854]
[1758523106744,0.0024,112960.0,112950.0,1.73388854]
[1758523106945,0.0024,112960.0,112950.0,2.64412854]
[1758523108045,0.0024,112960.0,112950.0,1.53378116]
[1758523108241,0.0008,112980.0,112970.0,0.0884541]
[1758523108542,0.18685549,113010.0,113000.0,0.1569406]
[1758523108741,0.18685549,113010.0,113000.0,0.71211429]
[1758523108943,0.14831921,113010.0,113000.0,0.71211429]
[1758523109244,0.11661,113010.0,113000.0,0.71211429]
[1758523109540,0.07306,113010.0,113000.0,0.71211429]
[1758523109841,0.07562956,113020.0,113000.0,0.75300429]
[1758523110037,0.07306,113010.0,113000.0,0.75300429]
[1758523110239,0.07806,113010.0,113000.0,0.75300429]
[1758523110739,0.11894,113010.0,113000.0,0.75300429]
[1758523111140,0.11894,113010.0,113000.0,0.1569406]
[1758523111339,0.11894,113010.0,113000.0,0.71211429]
[1758523111751,0.36894,113010.0,113000.0,0.71211429]
[1758523112249,0.36394,113010.0,113000.0,0.71211429]
[1758523112654,0.37494,113010.0,113000.0,0.75300429]
[1758523113151,0.37994,113010.0,113000.0,0.75300429]
[1758523114148,0.37986,113010.0,113000.0,0.75300429]
[1758523114352,0.33898,113010.0,113000.0,0.75300429]
[1758523115449,0.37986,113010.0,113000.0,0.75300429]
[1758523115654,0.12986,113010.0,113000.0,0.71211429]
[1758523115854,0.08898,113010.0,113000.0,0.75300429]
[1758523116947,0.0164,113010.0,113000.0,0.85300429]
[1758523117153,0.0164,113010.0,113000.0,1.10300429]
[1758523117449,0.016,113010.0,113000.0,1.10300429]